[Event "Early-Titled-Tuesday-Blitz-March-05-2024"]
[Site "Chess.com"]
[Date "2024.03.05"]
[Round "7"]
[White "NM_Antelacus"]
[Black "GeorgiosSouleidis"]
[Result "0-1"]
[WhiteElo "2281"]
[BlackElo "2659"]
[TimeControl "180+1"]
[EndTime "9:22:23 PST"]
[Termination "GeorgiosSouleidis won on time"]

1. e4 {[%clk 0:03:00.9]} 1... c5 {[%clk 0:02:59.9]} 2. c4 {[%clk 0:02:59.5]}
2... Nc6 {[%clk 0:02:59.2]} 3. g3 {[%clk 0:02:59.2]} 3... g6 {[%clk 0:02:57.7]}
4. Bg2 {[%clk 0:02:58.8]} 4... Bg7 {[%clk 0:02:58.3]} 5. Ne2 {[%clk 0:02:57.9]}
5... d6 {[%clk 0:02:54.9]} 6. O-O {[%clk 0:02:56.3]} 6... Nf6 {[%clk 0:02:54.7]}
7. Nbc3 {[%clk 0:02:55.4]} 7... O-O {[%clk 0:02:54.3]} 8. d3 {[%clk 0:02:55.3]}
8... Ne8 {[%clk 0:02:54]} 9. f4 {[%clk 0:02:53]} 9... Nc7 {[%clk 0:02:46]} 10.
Nd5 {[%clk 0:02:48.9]} 10... Ne6 {[%clk 0:02:45.3]} 11. Be3 {[%clk 0:02:46.2]}
11... Ned4 {[%clk 0:02:45.8]} 12. Nxd4 {[%clk 0:02:45.1]} 12... Nxd4 {[%clk
0:02:46.3]} 13. Qd2 {[%clk 0:02:40.1]} 13... e6 {[%clk 0:02:46]} 14. Nc3 {[%clk
0:02:38.7]} 14... Bd7 {[%clk 0:02:45.6]} 15. Ne2 {[%clk 0:02:31.2]} 15... Rb8
{[%clk 0:02:40.4]} 16. Rab1 {[%clk 0:02:25.7]} 16... b5 {[%clk 0:02:39.1]} 17.
b3 {[%clk 0:02:25.2]} 17... Nxe2+ {[%clk 0:02:31.1]} 18. Qxe2 {[%clk 0:02:24.6]}
18... a5 {[%clk 0:02:17.8]} 19. Qd2 {[%clk 0:02:20.8]} 19... Qb6 {[%clk
0:02:15.8]} 20. h3 {[%clk 0:02:06.7]} 20... Rfd8 {[%clk 0:02:15.7]} 21. Kh2
{[%clk 0:02:05.4]} 21... Bc6 {[%clk 0:02:14.5]} 22. f5 {[%clk 0:02:02.4]} 22...
exf5 {[%clk 0:02:14.1]} 23. exf5 {[%clk 0:02:02.1]} 23... Bxg2 {[%clk 0:02:14]}
24. Qxg2 {[%clk 0:02:01.4]} 24... Qb7 {[%clk 0:01:56.9]} 25. f6 {[%clk
0:01:51.8]} 25... Qxg2+ {[%clk 0:01:54.8]} 26. Kxg2 {[%clk 0:01:51.7]} 26... Bf8
{[%clk 0:01:55.4]} 27. g4 {[%clk 0:01:42.9]} 27... d5 {[%clk 0:01:55.4]} 28. Bf4
{[%clk 0:01:41]} 28... Bd6 {[%clk 0:01:50.9]} 29. cxb5 {[%clk 0:01:25.9]} 29...
Rxb5 {[%clk 0:01:48.4]} 30. Rbe1 {[%clk 0:01:23.9]} 30... Kf8 {[%clk 0:01:25.9]}
31. Kf3 {[%clk 0:01:16.1]} 31... Bxf4 {[%clk 0:01:14.4]} 32. Kxf4 {[%clk
0:01:14.7]} 32... c4 {[%clk 0:01:15.3]} 33. dxc4 {[%clk 0:01:11.1]} 33... dxc4
{[%clk 0:01:16.2]} 34. bxc4 {[%clk 0:01:07.8]} 34... g5+ {[%clk 0:01:04]} 35.
Kg3 {[%clk 0:01:02.7]} 35... Rb2 {[%clk 0:00:55.7]} 36. Rd1 {[%clk 0:00:55.9]}
36... Rc8 {[%clk 0:00:50.8]} 37. Rd5 {[%clk 0:00:50.9]} 37... Rxa2 {[%clk
0:00:45.3]} 38. c5 {[%clk 0:00:45.4]} 38... h6 {[%clk 0:00:40.4]} 39. Rfd1
{[%clk 0:00:41.4]} 39... Ra3+ {[%clk 0:00:40.1]} 40. Kg2 {[%clk 0:00:40.9]}
40... Kg8 {[%clk 0:00:35.2]} 41. Rd8+ {[%clk 0:00:38.3]} 41... Rxd8 {[%clk
0:00:35.4]} 42. Rxd8+ {[%clk 0:00:38.8]} 42... Kh7 {[%clk 0:00:36.3]} 43. Ra8
{[%clk 0:00:37.4]} 43... a4 {[%clk 0:00:34.3]} 44. c6 {[%clk 0:00:35.4]} 44...
Rc3 {[%clk 0:00:34.3]} 45. Rxa4 {[%clk 0:00:31.7]} 45... Rxc6 {[%clk 0:00:34.1]}
46. Ra5 {[%clk 0:00:30.9]} 46... Kg6 {[%clk 0:00:31.8]} 47. Kg3 {[%clk
0:00:30.7]} 47... Kxf6 {[%clk 0:00:28.5]} 48. Kg2 {[%clk 0:00:30.5]} 48... Kg6
{[%clk 0:00:28.2]} 49. Kg3 {[%clk 0:00:30.7]} 49... Rc3+ {[%clk 0:00:28.1]} 50.
Kg2 {[%clk 0:00:30.7]} 50... f6 {[%clk 0:00:28.7]} 51. Rb5 {[%clk 0:00:29.6]}
51... h5 {[%clk 0:00:27.9]} 52. Ra5 {[%clk 0:00:26.3]} 52... h4 {[%clk
0:00:27.6]} 53. Rb5 {[%clk 0:00:25.7]} 53... Rg3+ {[%clk 0:00:27.6]} 54. Kh2
{[%clk 0:00:25.9]} 54... Re3 {[%clk 0:00:27.8]} 55. Kg2 {[%clk 0:00:25.6]} 55...
Kf7 {[%clk 0:00:28.2]} 56. Rb6 {[%clk 0:00:25.2]} 56... Re6 {[%clk 0:00:26.9]}
57. Rb7+ {[%clk 0:00:25.5]} 57... Re7 {[%clk 0:00:25.1]} 58. Rb6 {[%clk
0:00:25.5]} 58... Rc7 {[%clk 0:00:22.5]} 59. Ra6 {[%clk 0:00:25.3]} 59... Kg6
{[%clk 0:00:23]} 60. Ra5 {[%clk 0:00:24.1]} 60... Rc2+ {[%clk 0:00:22.4]} 61.
Kg1 {[%clk 0:00:22.9]} 61... Rd2 {[%clk 0:00:22.1]} 62. Rb5 {[%clk 0:00:22.3]}
62... Re2 {[%clk 0:00:22.1]} 63. Ra5 {[%clk 0:00:22.5]} 63... Re5 {[%clk
0:00:22.2]} 64. Ra6 {[%clk 0:00:21.6]} 64... Kf7 {[%clk 0:00:21.7]} 65. Rb6
{[%clk 0:00:21.4]} 65... Ke7 {[%clk 0:00:20.5]} 66. Ra6 {[%clk 0:00:20.2]} 66...
Re6 {[%clk 0:00:20.6]} 67. Ra5 {[%clk 0:00:19]} 67... Kd6 {[%clk 0:00:21]} 68.
Rb5 {[%clk 0:00:18.7]} 68... Kc6 {[%clk 0:00:20.5]} 69. Ra5 {[%clk 0:00:17.8]}
69... Kb6 {[%clk 0:00:21]} 70. Rd5 {[%clk 0:00:17.5]} 70... Kc6 {[%clk
0:00:20.4]} 71. Ra5 {[%clk 0:00:17.2]} 71... Kd6 {[%clk 0:00:20.7]} 72. Rb5
{[%clk 0:00:17.2]} 72... Re5 {[%clk 0:00:20.9]} 73. Rb6+ {[%clk 0:00:16.3]}
73... Ke7 {[%clk 0:00:21.6]} 74. Ra6 {[%clk 0:00:16.3]} 74... Re3 {[%clk
0:00:20.7]} 75. Kg2 {[%clk 0:00:15.6]} 75... Rd3 {[%clk 0:00:21.2]} 76. Rb6
{[%clk 0:00:15.4]} 76... Rd6 {[%clk 0:00:21.4]} 77. Rb7+ {[%clk 0:00:15.1]}
77... Ke6 {[%clk 0:00:21.8]} 78. Rb5 {[%clk 0:00:14.9]} 78... Rd5 {[%clk
0:00:22.4]} 79. Rb6+ {[%clk 0:00:14.4]} 79... Ke5 {[%clk 0:00:22.7]} 80. Rb8
{[%clk 0:00:14]} 80... Rd2+ {[%clk 0:00:21.8]} 81. Kg1 {[%clk 0:00:11.8]} 81...
Kf4 {[%clk 0:00:21.8]} 82. Rb3 {[%clk 0:00:11.3]} 82... Re2 {[%clk 0:00:20]} 83.
Ra3 {[%clk 0:00:10.4]} 83... Re3 {[%clk 0:00:20.3]} 84. Ra2 {[%clk 0:00:09.5]}
84... Rxh3 {[%clk 0:00:20.2]} 85. Rf2+ {[%clk 0:00:07.4]} 85... Kxg4 {[%clk
0:00:20]} 86. Rxf6 {[%clk 0:00:06.9]} 86... Ra3 {[%clk 0:00:20.1]} 87. Rb6
{[%clk 0:00:06.4]} 87... Ra2 {[%clk 0:00:19.7]} 88. Rb3 {[%clk 0:00:05.4]} 88...
h3 {[%clk 0:00:19]} 89. Rc3 {[%clk 0:00:05.4]} 89... Kh4 {[%clk 0:00:19.1]} 90.
Rb3 {[%clk 0:00:05.4]} 90... g4 {[%clk 0:00:19.6]} 91. Rc3 {[%clk 0:00:04.6]}
91... Ra1+ {[%clk 0:00:19.9]} 92. Kh2 {[%clk 0:00:03.7]} 92... Ra4 {[%clk
0:00:19]} 93. Rb3 {[%clk 0:00:03.1]} 93... Re4 {[%clk 0:00:19.2]} 94. Rc3 {[%clk
0:00:03.2]} 94... Re2+ {[%clk 0:00:19.5]} 95. Kg1 {[%clk 0:00:02.6]} 95... Kg5
{[%clk 0:00:19.9]} 96. Rc4 {[%clk 0:00:02.6]} 96... Re5 {[%clk 0:00:19.5]} 97.
Rb4 {[%clk 0:00:02.4]} 97... Rf5 {[%clk 0:00:20]} 98. Ra4 {[%clk 0:00:02.6]}
98... Re5 {[%clk 0:00:20.2]} 99. Rb4 {[%clk 0:00:02.9]} 99... Kf5 {[%clk
0:00:20.8]} 100. Ra4 {[%clk 0:00:03.2]} 100... Re4 {[%clk 0:00:21.4]} 101. Ra5+
{[%clk 0:00:03.5]} 101... Kf4 {[%clk 0:00:21.9]} 102. Ra3 {[%clk 0:00:03.8]}
102... Re3 {[%clk 0:00:22.3]} 103. Ra2 {[%clk 0:00:03.5]} 103... Kf3 {[%clk
0:00:20.8]} 104. Rf2+ {[%clk 0:00:02.7]} 104... Kg3 {[%clk 0:00:20.7]} 105. Rg2+
{[%clk 0:00:03.1]} 105... Kf4 {[%clk 0:00:21.2]} 106. Rf2+ {[%clk 0:00:03.4]}
106... Rf3 {[%clk 0:00:20.9]} 107. Ra2 {[%clk 0:00:03.1]} 107... Rc3 {[%clk
0:00:20.6]} 108. Rb2 {[%clk 0:00:03.1]} 108... Ke3 {[%clk 0:00:20.7]} 109. Ra2
{[%clk 0:00:02.4]} 109... Kd3 {[%clk 0:00:21.1]} 110. Rb2 {[%clk 0:00:02.6]}
110... Rc1+ {[%clk 0:00:21.4]} 111. Kh2 {[%clk 0:00:02.4]} 111... Rc2+ {[%clk
0:00:22.3]} 0-1

[Event "Early-Titled-Tuesday-Blitz-March-05-2024"]
[Site "Chess.com"]
[Date "2024.03.05"]
[Round "8"]
[White "ZuraTqebuchava"]
[Black "Eloist"]
[Result "1-0"]
[WhiteElo "2263"]
[BlackElo "2418"]
[TimeControl "180+1"]
[EndTime "9:25:22 PST"]
[Termination "ZuraTqebuchava won by resignation"]

1. e4 {[%clk 0:02:59.2]} 1... e6 {[%clk 0:02:58.6]} 2. d4 {[%clk 0:02:56.5]}
2... d5 {[%clk 0:02:58.4]} 3. exd5 {[%clk 0:02:57.4]} 3... exd5 {[%clk
0:02:58.2]} 4. Bd3 {[%clk 0:02:58]} 4... Bd6 {[%clk 0:02:55.5]} 5. h3 {[%clk
0:02:57.3]} 5... Nc6 {[%clk 0:02:55]} 6. c3 {[%clk 0:02:56.4]} 6... Nge7 {[%clk
0:02:54.9]} 7. Nf3 {[%clk 0:02:56.3]} 7... Bf5 {[%clk 0:02:54.6]} 8. O-O {[%clk
0:02:55.1]} 8... O-O {[%clk 0:02:50.6]} 9. Re1 {[%clk 0:02:53.4]} 9... Qd7
{[%clk 0:02:49]} 10. Bxf5 {[%clk 0:02:50.6]} 10... Qxf5 {[%clk 0:02:46.9]} 11.
Nbd2 {[%clk 0:02:45.1]} 11... Rae8 {[%clk 0:02:45.3]} 12. Nf1 {[%clk 0:02:44.6]}
12... Ng6 {[%clk 0:02:43.3]} 13. Be3 {[%clk 0:02:38.1]} 13... Nf4 {[%clk
0:02:28.8]} 14. Bxf4 {[%clk 0:02:37.1]} 14... Bxf4 {[%clk 0:02:25.5]} 15. Qb3
{[%clk 0:02:34.4]} 15... Na5 {[%clk 0:02:15]} 16. Qb5 {[%clk 0:02:26.9]} 16...
b6 {[%clk 0:02:13.4]} 17. Rxe8 {[%clk 0:02:25.7]} 17... c6 {[%clk 0:02:09.1]}
18. Rxf8+ {[%clk 0:02:24.8]} 1-0

[Event "Early-Titled-Tuesday-Blitz-March-05-2024"]
[Site "Chess.com"]
[Date "2024.03.05"]
[Round "8"]
[White "Louis-Paulsen-Fan"]
[Black "Miguelito"]
[Result "0-1"]
[WhiteElo "2250"]
[BlackElo "2806"]
[TimeControl "180+1"]
[EndTime "9:26:32 PST"]
[Termination "Miguelito won by resignation"]

1. d4 {[%clk 0:03:00.9]} 1... c6 {[%clk 0:03:00.5]} 2. Nf3 {[%clk 0:03:00.8]}
2... d5 {[%clk 0:03:01.4]} 3. c4 {[%clk 0:03:01.1]} 3... Nf6 {[%clk 0:03:01.3]}
4. Nc3 {[%clk 0:03:01.4]} 4... e6 {[%clk 0:03:01.9]} 5. Bg5 {[%clk 0:03:01.1]}
5... h6 {[%clk 0:03:01.9]} 6. Bh4 {[%clk 0:02:59.8]} 6... g5 {[%clk 0:03:02.4]}
7. Bg3 {[%clk 0:03:00.1]} 7... Ne4 {[%clk 0:03:03.3]} 8. e3 {[%clk 0:02:49.6]}
8... Qa5 {[%clk 0:03:02]} 9. Qc2 {[%clk 0:02:49]} 9... Bb4 {[%clk 0:02:59.4]}
10. Rc1 {[%clk 0:02:48.7]} 10... Qxa2 {[%clk 0:02:59.6]} 11. Bd3 {[%clk
0:02:48.7]} 11... Bxc3+ {[%clk 0:03:00]} 12. bxc3 {[%clk 0:02:46.3]} 12... Qxc2
{[%clk 0:03:00.9]} 13. Rxc2 {[%clk 0:02:44.7]} 13... Nxg3 {[%clk 0:03:01.8]} 14.
hxg3 {[%clk 0:02:44.4]} 14... f6 {[%clk 0:02:59.6]} 15. cxd5 {[%clk 0:02:11.9]}
15... cxd5 {[%clk 0:02:57]} 16. e4 {[%clk 0:02:10.3]} 16... Nc6 {[%clk
0:02:51.3]} 17. exd5 {[%clk 0:02:07.5]} 17... exd5 {[%clk 0:02:51.3]} 18. O-O
{[%clk 0:02:05.8]} 18... Ke7 {[%clk 0:02:42.2]} 19. Re1+ {[%clk 0:02:04.8]}
19... Kd6 {[%clk 0:02:42.3]} 20. c4 {[%clk 0:01:47.7]} 20... dxc4 {[%clk
0:02:38.2]} 21. Bxc4 {[%clk 0:01:45.3]} 21... Bf5 {[%clk 0:02:22.8]} 22. d5
{[%clk 0:01:39.7]} 22... Bxc2 {[%clk 0:02:21.8]} 23. dxc6 {[%clk 0:01:33.5]}
23... bxc6 {[%clk 0:02:22.7]} 24. Re6+ {[%clk 0:01:17]} 24... Kc5 {[%clk
0:02:20.8]} 25. Be2 {[%clk 0:01:13.5]} 25... Rhe8 {[%clk 0:02:19.6]} 0-1

[Event "Early-Titled-Tuesday-Blitz-March-05-2024"]
[Site "Chess.com"]
[Date "2024.03.05"]
[Round "8"]
[White "Msb2"]
[Black "stolencandy13"]
[Result "0-1"]
[WhiteElo "2993"]
[BlackElo "2697"]
[TimeControl "180+1"]
[EndTime "9:26:36 PST"]
[Termination "stolencandy13 won by checkmate"]

1. d4 {[%clk 0:03:00.9]} 1... Nf6 {[%clk 0:02:59.9]} 2. c4 {[%clk 0:03:00.7]}
2... c5 {[%clk 0:03:00.2]} 3. d5 {[%clk 0:03:00.6]} 3... e6 {[%clk 0:03:00.8]}
4. Nc3 {[%clk 0:03:00.8]} 4... exd5 {[%clk 0:03:01.7]} 5. cxd5 {[%clk
0:03:01.7]} 5... d6 {[%clk 0:03:02.3]} 6. e4 {[%clk 0:03:02.4]} 6... g6 {[%clk
0:03:02.7]} 7. h3 {[%clk 0:03:02.9]} 7... Bg7 {[%clk 0:03:02]} 8. Nf3 {[%clk
0:03:03.6]} 8... a6 {[%clk 0:03:02.3]} 9. a4 {[%clk 0:03:02.7]} 9... Nbd7 {[%clk
0:03:02.6]} 10. Bd3 {[%clk 0:03:03.1]} 10... Nh5 {[%clk 0:03:02.7]} 11. O-O
{[%clk 0:03:03.5]} 11... Ne5 {[%clk 0:03:02.3]} 12. Be2 {[%clk 0:03:02.5]} 12...
Nxf3+ {[%clk 0:03:02.5]} 13. Bxf3 {[%clk 0:03:03.4]} 13... Qh4 {[%clk
0:03:02.7]} 14. Bxh5 {[%clk 0:02:52]} 14... gxh5 {[%clk 0:03:03.6]} 15. Be3
{[%clk 0:02:41]} 15... Rg8 {[%clk 0:02:57.8]} 16. Qf3 {[%clk 0:02:09.3]} 16...
Be5 {[%clk 0:02:35.2]} 17. Kh1 {[%clk 0:02:03.3]} 17... Bg4 {[%clk 0:02:16.2]}
18. Qf4 {[%clk 0:01:41.7]} 18... Bxf4 {[%clk 0:02:14.3]} 19. Bxf4 {[%clk
0:01:42.6]} 19... Bf3 {[%clk 0:02:03.3]} 20. Rg1 {[%clk 0:01:20.9]} 20... Qxh3+
{[%clk 0:01:57.4]} 21. Bh2 {[%clk 0:01:21]} 21... Rxg2 {[%clk 0:01:56]} 22. Rxg2
{[%clk 0:01:21.9]} 22... Qxg2# {[%clk 0:01:56]} 0-1

[Event "Early-Titled-Tuesday-Blitz-March-05-2024"]
[Site "Chess.com"]
[Date "2024.03.05"]
[Round "8"]
[White "xamax2000"]
[Black "AlexTruskavetsky"]
[Result "0-1"]
[WhiteElo "2909"]
[BlackElo "2712"]
[TimeControl "180+1"]
[EndTime "9:27:04 PST"]
[Termination "AlexTruskavetsky won by resignation"]

1. Nf3 {[%clk 0:02:30.2]} 1... Nf6 {[%clk 0:03:00]} 2. c4 {[%clk 0:02:30.3]}
2... e6 {[%clk 0:02:59.6]} 3. Nc3 {[%clk 0:02:30.9]} 3... d5 {[%clk 0:02:59.9]}
4. d4 {[%clk 0:02:31.6]} 4... dxc4 {[%clk 0:02:58.9]} 5. e4 {[%clk 0:02:29.9]}
5... b5 {[%clk 0:02:59]} 6. e5 {[%clk 0:02:29.7]} 6... Nd5 {[%clk 0:02:59.4]} 7.
Nxb5 {[%clk 0:02:30.3]} 7... Nb6 {[%clk 0:03:00.1]} 8. Be2 {[%clk 0:02:30.2]}
8... Be7 {[%clk 0:02:59]} 9. Be3 {[%clk 0:02:28.4]} 9... Bb7 {[%clk 0:02:58.9]}
10. Rc1 {[%clk 0:02:23.2]} 10... O-O {[%clk 0:02:58.9]} 11. O-O {[%clk 0:02:21]}
11... N8d7 {[%clk 0:02:52.8]} 12. Nd2 {[%clk 0:02:19.3]} 12... a6 {[%clk
0:02:44.4]} 13. Na3 {[%clk 0:02:19.2]} 13... Bxa3 {[%clk 0:02:36.7]} 14. bxa3
{[%clk 0:02:20.1]} 14... Qe7 {[%clk 0:02:36.9]} 15. Nxc4 {[%clk 0:02:20.4]}
15... Nxc4 {[%clk 0:02:37.1]} 16. Rxc4 {[%clk 0:02:21.3]} 16... Nb6 {[%clk
0:02:35.6]} 17. Rc5 {[%clk 0:02:18]} 17... Nd5 {[%clk 0:02:30.8]} 18. Qc1 {[%clk
0:02:15.7]} 18... f6 {[%clk 0:02:27.9]} 19. exf6 {[%clk 0:02:05.8]} 19... Qxf6
{[%clk 0:02:26.3]} 20. Bd3 {[%clk 0:01:59.1]} 20... Rad8 {[%clk 0:02:16.5]} 21.
Bg5 {[%clk 0:01:44.3]} 21... Qxd4 {[%clk 0:02:12.2]} 22. Bxd8 {[%clk 0:01:44.3]}
22... Qxd3 {[%clk 0:02:06.4]} 23. Bxc7 {[%clk 0:01:37.3]} 23... Nxc7 {[%clk
0:02:04.9]} 24. Rxc7 {[%clk 0:01:36.3]} 24... Bxg2 {[%clk 0:02:04.9]} 25. Rd1
{[%clk 0:01:11.9]} 25... Qg6 {[%clk 0:02:02]} 26. Rdd7 {[%clk 0:01:07.8]} 26...
Bc6+ {[%clk 0:02:00.2]} 27. Kf1 {[%clk 0:01:02.9]} 27... Qg2+ {[%clk 0:01:59.8]}
0-1

[Event "Early-Titled-Tuesday-Blitz-March-05-2024"]
[Site "Chess.com"]
[Date "2024.03.05"]
[Round "8"]
[White "SharapovEvgeny"]
[Black "LileKoridze"]
[Result "1-0"]
[WhiteElo "2551"]
[BlackElo "2437"]
[TimeControl "180+1"]
[EndTime "9:27:13 PST"]
[Termination "SharapovEvgeny won by resignation"]

1. e4 {[%clk 0:03:00.2]} 1... c5 {[%clk 0:02:59.7]} 2. Nf3 {[%clk 0:02:59.9]}
2... d6 {[%clk 0:02:59.7]} 3. d4 {[%clk 0:02:59.9]} 3... cxd4 {[%clk 0:02:58.9]}
4. Nxd4 {[%clk 0:03:00.2]} 4... Nf6 {[%clk 0:02:58.9]} 5. f3 {[%clk 0:03:00.5]}
5... a6 {[%clk 0:02:46.7]} 6. c4 {[%clk 0:03:00]} 6... e5 {[%clk 0:02:46.2]} 7.
Nc2 {[%clk 0:02:59.8]} 7... Be7 {[%clk 0:02:46.1]} 8. Nc3 {[%clk 0:02:59.7]}
8... Be6 {[%clk 0:02:43.9]} 9. Be3 {[%clk 0:02:59.8]} 9... Nbd7 {[%clk
0:02:43.5]} 10. Be2 {[%clk 0:02:59.8]} 10... Rc8 {[%clk 0:02:42.9]} 11. Nd5
{[%clk 0:02:59.4]} 11... O-O {[%clk 0:02:33.8]} 12. O-O {[%clk 0:02:58.9]} 12...
Bxd5 {[%clk 0:02:22.6]} 13. cxd5 {[%clk 0:02:58.6]} 13... b5 {[%clk 0:02:22.1]}
14. Nb4 {[%clk 0:02:56.7]} 14... Nb8 {[%clk 0:02:10.8]} 15. a4 {[%clk
0:02:56.2]} 15... Qa5 {[%clk 0:02:04.8]} 16. Qb3 {[%clk 0:02:46.1]} 16... bxa4
{[%clk 0:01:51.7]} 17. Rxa4 {[%clk 0:02:45.2]} 17... Qc7 {[%clk 0:01:51]} 18.
Nxa6 {[%clk 0:02:38.9]} 18... Nxa6 {[%clk 0:01:50.9]} 19. Rxa6 {[%clk
0:02:38.9]} 19... Nd7 {[%clk 0:01:50.5]} 20. Ra7 {[%clk 0:02:28.4]} 20... Qd8
{[%clk 0:01:48.2]} 21. Qb7 {[%clk 0:02:25.2]} 21... Bg5 {[%clk 0:01:41.6]} 22.
Bf2 {[%clk 0:02:08.6]} 22... Nc5 {[%clk 0:01:38.7]} 23. Qb4 {[%clk 0:01:53.9]}
23... Rb8 {[%clk 0:01:31.4]} 24. Qc3 {[%clk 0:01:51.8]} 24... Rc8 {[%clk
0:01:27.1]} 25. Qa3 {[%clk 0:01:47.9]} 25... Qb6 {[%clk 0:01:15.7]} 26. b4
{[%clk 0:01:43.3]} 1-0

[Event "Early-Titled-Tuesday-Blitz-March-05-2024"]
[Site "Chess.com"]
[Date "2024.03.05"]
[Round "8"]
[White "ckgchess"]
[Black "BardArtem"]
[Result "1-0"]
[WhiteElo "2913"]
[BlackElo "2736"]
[TimeControl "180+1"]
[EndTime "9:27:16 PST"]
[Termination "ckgchess won by resignation"]

1. e4 {[%clk 0:03:00.9]} 1... d5 {[%clk 0:02:48]} 2. exd5 {[%clk 0:03:00.8]}
2... Qxd5 {[%clk 0:02:48.9]} 3. Nc3 {[%clk 0:03:01.2]} 3... Qe5+ {[%clk
0:02:48.9]} 4. Be2 {[%clk 0:03:01.5]} 4... Bg4 {[%clk 0:02:49.1]} 5. d4 {[%clk
0:03:02.2]} 5... Bxe2 {[%clk 0:02:49.5]} 6. Ngxe2 {[%clk 0:03:03.1]} 6... Qa5
{[%clk 0:02:50]} 7. O-O {[%clk 0:02:59.2]} 7... Nf6 {[%clk 0:02:50.3]} 8. b4
{[%clk 0:02:59.6]} 8... Qxb4 {[%clk 0:02:49.6]} 9. Qd3 {[%clk 0:02:59.9]} 9...
Qd6 {[%clk 0:02:43.4]} 10. Rb1 {[%clk 0:02:46.8]} 10... Qa6 {[%clk 0:02:42.6]}
11. Nb5 {[%clk 0:02:42.4]} 11... Qc6 {[%clk 0:02:42.3]} 12. d5 {[%clk
0:02:32.2]} 12... Qd7 {[%clk 0:02:42.2]} 13. Bf4 {[%clk 0:02:32]} 13... Na6
{[%clk 0:02:40.7]} 14. c4 {[%clk 0:02:31.5]} 14... g6 {[%clk 0:02:35.8]} 15.
Rfe1 {[%clk 0:01:50.7]} 15... Bg7 {[%clk 0:02:34.4]} 16. Nxc7+ {[%clk
0:01:45.5]} 16... Nxc7 {[%clk 0:02:33.2]} 17. Rxb7 {[%clk 0:01:46.2]} 17...
Nfxd5 {[%clk 0:02:02.3]} 18. cxd5 {[%clk 0:01:40.8]} 18... Qxd5 {[%clk
0:02:03.2]} 19. Qb1 {[%clk 0:01:06.4]} 19... Ne6 {[%clk 0:02:02.8]} 20. Rd1
{[%clk 0:00:55.2]} 20... Qa5 {[%clk 0:01:46.1]} 21. Rb8+ {[%clk 0:00:54.1]}
21... Rxb8 {[%clk 0:01:46.1]} 22. Qxb8+ {[%clk 0:00:55]} 22... Nd8 {[%clk
0:01:46.8]} 23. Bc7 {[%clk 0:00:54.6]} 1-0

[Event "Early-Titled-Tuesday-Blitz-March-05-2024"]
[Site "Chess.com"]
[Date "2024.03.05"]
[Round "8"]
[White "ChessSwole"]
[Black "kleinebeer98"]
[Result "1-0"]
[WhiteElo "2731"]
[BlackElo "2885"]
[TimeControl "180+1"]
[EndTime "9:27:21 PST"]
[Termination "ChessSwole won by checkmate"]

1. d4 {[%clk 0:03:00.9]} 1... Nf6 {[%clk 0:02:59.1]} 2. c4 {[%clk 0:03:00.4]}
2... a6 {[%clk 0:02:59.8]} 3. Nf3 {[%clk 0:03:00.1]} 3... b5 {[%clk 0:03:00.2]}
4. b3 {[%clk 0:02:57.6]} 4... bxc4 {[%clk 0:02:59.8]} 5. bxc4 {[%clk 0:02:57.7]}
5... g6 {[%clk 0:03:00.2]} 6. e3 {[%clk 0:02:55.1]} 6... Bg7 {[%clk 0:03:00.4]}
7. Be2 {[%clk 0:02:55.1]} 7... c5 {[%clk 0:03:00.3]} 8. O-O {[%clk 0:02:53.5]}
8... cxd4 {[%clk 0:02:59.3]} 9. exd4 {[%clk 0:02:53.9]} 9... O-O {[%clk
0:02:59.9]} 10. Bb2 {[%clk 0:02:51.1]} 10... Nc6 {[%clk 0:02:59]} 11. d5 {[%clk
0:02:50.5]} 11... Na5 {[%clk 0:02:57.2]} 12. Nbd2 {[%clk 0:02:47.7]} 12... d6
{[%clk 0:02:52.2]} 13. h3 {[%clk 0:02:42.6]} 13... Bd7 {[%clk 0:02:49]} 14. Nd4
{[%clk 0:02:41.7]} 14... Rb8 {[%clk 0:02:46.4]} 15. Bc3 {[%clk 0:02:41.5]} 15...
Qc7 {[%clk 0:02:44.4]} 16. Rc1 {[%clk 0:02:33.7]} 16... Rfc8 {[%clk 0:02:43]}
17. N2b3 {[%clk 0:02:12.1]} 17... Nxc4 {[%clk 0:02:39.1]} 18. Ba1 {[%clk
0:02:11.6]} 18... Bb5 {[%clk 0:02:30.9]} 19. a4 {[%clk 0:02:11.7]} 19... Nxd5
{[%clk 0:02:22]} 20. axb5 {[%clk 0:02:11.1]} 20... axb5 {[%clk 0:02:22.9]} 21.
Nxb5 {[%clk 0:02:04.8]} 21... Nc3 {[%clk 0:01:50]} 22. Bxc3 {[%clk 0:01:56.2]}
22... Rxb5 {[%clk 0:01:43.7]} 23. Bxg7 {[%clk 0:01:55.1]} 23... d5 {[%clk
0:01:44.2]} 24. Ba1 {[%clk 0:01:44.2]} 24... Rcb8 {[%clk 0:01:44.3]} 25. Nd4
{[%clk 0:01:42.4]} 25... Ra5 {[%clk 0:01:43.8]} 26. Bxc4 {[%clk 0:01:42.3]}
26... dxc4 {[%clk 0:01:44.7]} 27. Bc3 {[%clk 0:01:41.1]} 27... Ra3 {[%clk
0:01:44.7]} 28. Nf3 {[%clk 0:01:35.7]} 28... Rd8 {[%clk 0:01:44.6]} 29. Qe1
{[%clk 0:01:35.1]} 29... f6 {[%clk 0:01:44]} 30. Qe6+ {[%clk 0:01:35]} 30... Kg7
{[%clk 0:01:44.2]} 31. Ng5 {[%clk 0:01:29]} 31... Rd6 {[%clk 0:01:39.5]} 32.
Qf7+ {[%clk 0:01:26.4]} 32... Kh6 {[%clk 0:01:40.2]} 33. Ne6 {[%clk 0:01:21.3]}
33... Qc6 {[%clk 0:01:37.3]} 34. Qg7+ {[%clk 0:01:20.9]} 34... Kh5 {[%clk
0:01:37.9]} 35. Qxh7# {[%clk 0:01:21.1]} 1-0

[Event "Early-Titled-Tuesday-Blitz-March-05-2024"]
[Site "Chess.com"]
[Date "2024.03.05"]
[Round "8"]
[White "DuleMudule"]
[Black "mishanick"]
[Result "0-1"]
[WhiteElo "2868"]
[BlackElo "3075"]
[TimeControl "180+1"]
[EndTime "9:27:33 PST"]
[Termination "mishanick won by resignation"]

1. d4 {[%clk 0:02:56.9]} 1... Nf6 {[%clk 0:03:00.4]} 2. Bg5 {[%clk 0:02:55.5]}
2... Ne4 {[%clk 0:02:59.7]} 3. h4 {[%clk 0:02:55.2]} 3... c5 {[%clk 0:02:57.7]}
4. dxc5 {[%clk 0:02:56.1]} 4... Nxc5 {[%clk 0:02:56.1]} 5. Nc3 {[%clk
0:02:44.2]} 5... Nc6 {[%clk 0:02:56.7]} 6. Be3 {[%clk 0:02:43.5]} 6... e6 {[%clk
0:02:54]} 7. Nf3 {[%clk 0:02:41.9]} 7... d5 {[%clk 0:02:54.6]} 8. g3 {[%clk
0:02:39.7]} 8... Qa5 {[%clk 0:02:40.4]} 9. Qd2 {[%clk 0:02:32.7]} 9... Be7
{[%clk 0:02:35.8]} 10. Bg2 {[%clk 0:02:31.5]} 10... O-O {[%clk 0:02:34.2]} 11.
O-O {[%clk 0:02:30.8]} 11... Rd8 {[%clk 0:02:31.8]} 12. Nd4 {[%clk 0:02:17.4]}
12... Qc7 {[%clk 0:02:28.4]} 13. f4 {[%clk 0:02:05.3]} 13... Bd7 {[%clk
0:02:26.8]} 14. Rad1 {[%clk 0:01:59.5]} 14... Be8 {[%clk 0:02:26.5]} 15. Qe1
{[%clk 0:01:58.4]} 15... Nxd4 {[%clk 0:02:04.6]} 16. Bxd4 {[%clk 0:01:57.6]}
16... Na4 {[%clk 0:02:05.1]} 17. e4 {[%clk 0:01:47.7]} 17... Nxb2 {[%clk
0:01:58.5]} 18. Nxd5 {[%clk 0:01:36.4]} 18... exd5 {[%clk 0:01:50.2]} 19. Bxb2
{[%clk 0:01:35.5]} 19... dxe4 {[%clk 0:01:47.3]} 20. Qxe4 {[%clk 0:01:30.6]}
20... Bc6 {[%clk 0:01:36.9]} 21. Qe5 {[%clk 0:01:30]} 21... Qb6+ {[%clk
0:01:35.1]} 0-1